bitfinex/quotes_SOLUSD_20250904
["timestamp","ask_amount","ask_price","bid_price","bid_amount"]
[1756995652755,10.76595572,205.93,205.92,0.03]
[1756995653144,11.45595572,205.93,205.92,0.03]
[1756995654753,0.69,205.93,205.92,0.03]
[1756995654925,11.45595572,205.93,205.92,0.03]
[1756995655124,0.69,205.93,205.92,0.03]
[1756995655326,11.45595572,205.93,205.92,0.03]
[1756995655757,10.76595572,205.94,205.92,0.03]
[1756995655959,11.45595572,205.94,205.92,0.03]
[1756995656261,0.69,205.93,205.92,0.03]
[1756995656641,11.45595572,205.93,205.92,0.03]
[1756995657546,5.15329746,205.93,205.92,0.03]
[1756995658064,4.46329746,205.94,205.92,0.03]
[1756995658227,0.75,205.96,205.92,0.03]
[1756995658432,0.69,205.93,205.92,0.03]
[1756995658648,5.15329746,205.93,205.92,0.03]
[1756995658849,0.69,205.93,205.92,0.03]
[1756995659066,5.15329746,205.93,205.92,0.03]
[1756995659222,0.69,205.93,205.92,0.03]
[1756995659425,0.39,205.93,205.92,0.03]
[1756995659631,4.85329746,205.93,205.92,0.03]
[1756995661737,5.24601903,205.93,205.92,0.03]
[1756995661930,9.70931649,205.93,205.92,0.03]
[1756995662330,0.39,205.93,205.92,0.03]
[1756995662627,4.85329746,205.93,205.92,0.03]
[1756995662858,9.70931649,205.93,205.92,0.03]
[1756995663753,4.85329746,205.93,205.92,0.03]
[1756995664561,9.70931649,205.93,205.92,0.03]
[1756995665965,23.3049105,205.93,205.92,0.03]
[1756995667467,18.44889147,205.93,205.92,0.03]
[1756995667655,47.74601903,205.93,205.92,0.03]
[1756995668164,52.20931649,205.93,205.92,0.03]
[1756995668561,65.8049105,205.93,205.92,0.03]
[1756995668874,70.26820796,205.93,205.92,0.03]
[1756995669170,65.8049105,205.93,205.92,0.03]
[1756995670055,82.40825554,205.93,205.89,0.03]
[1756995670261,48.52218893,205.9,205.89,0.03]
[1756995670653,49.21218893,205.9,205.89,0.03]
[1756995671162,91.67218893,205.9,205.89,0.03]
[1756995671547,40.28559401,205.9,205.89,0.03]
[1756995671750,91.67218893,205.9,205.89,0.03]
[1756995672167,96.52891549,205.9,205.89,0.03]
[1756995673139,18.05889147,205.88,205.86,0.03]
[1756995673343,86.49889147,205.87,205.86,0.03]
[1756995673767,87.17889147,205.87,205.86,0.03]
[1756995674143,92.03632577,205.87,205.86,0.03]
[1756995674450,49.59632577,205.87,205.86,0.03]
[1756995674757,92.01632577,205.87,205.86,0.03]
[1756995675259,48.91632577,205.87,205.86,0.03]
[1756995675451,86.47889147,205.87,205.86,0.03]
[1756995676246,87.15889147,205.87,205.86,0.03]
[1756995676942,92.01632577,205.87,205.86,0.03]
[1756995677673,87.55302831,205.87,205.86,0.03]
[1756995677853,91.33632577,205.87,205.86,0.03]
[1756995678860,68.4,205.87,205.86,0.74]
[1756995679168,12.14006282,205.93,205.86,0.74]
[1756995679169,5.53554746,205.95,205.86,5.59749194]
[1756995679367,4.46329746,205.91,205.87,0.71]
[1756995679578,46.84329746,205.9,205.88,0.71]
[1756995680267,4.46329746,205.89,205.86,0.03]
[1756995680594,46.84329746,205.9,205.87,0.71]
[1756995680739,46.84329746,205.9,205.86,0.03]
[1756995680740,46.84329746,205.9,205.88,0.71]
[1756995682167,46.90329746,205.9,205.88,0.71]
[1756995682360,4.46329746,205.89,205.86,0.03]
[1756995682579,4.46329746,205.88,205.87,0.71]
[1756995683284,46.90329746,205.9,205.87,0.71]
[1756995683455,0.06,205.9,205.87,0.71]
[1756995683653,4.52329746,205.9,205.88,0.71]
[1756995683979,4.46329746,205.89,205.86,0.74]
[1756995684157,4.46329746,205.89,205.87,0.71]
[1756995684359,4.52329746,205.9,205.88,0.71]
[1756995684567,4.52329746,205.9,205.89,0.71]
[1756995684756,0.06,205.9,205.89,0.71]
[1756995687456,0.06,205.9,205.88,0.71]
[1756995687972,4.52329746,205.9,205.88,0.71]
[1756995688183,4.52329746,205.9,205.86,4.49329746]
[1756995688184,0.06,205.9,205.86,4.49329746]
[1756995688352,0.06,205.9,205.87,0.71]
[1756995688873,0.06,205.9,205.88,0.71]
[1756995689473,0.06,205.9,205.89,0.71]
[1756995691264,0.06,205.9,205.89,5.56696245]
[1756995691859,0.06,205.9,205.89,0.71]
[1756995692557,4.52329746,205.9,205.86,0.03]
[1756995692860,4.46329746,205.89,205.87,0.71]
[1756995693067,0.06,205.9,205.87,0.71]
[1756995693268,0.06,205.9,205.88,0.71]
[1756995693589,4.46329746,205.89,205.86,0.74]
[1756995693776,4.46329746,205.89,205.86,0.03]
[1756995694083,4.46329746,205.89,205.87,0.71]
[1756995694385,13.59559401,205.87,205.86,0.03]
[1756995694567,26.0,205.85,205.84,0.03]
[1756995694776,72.66329746,205.85,205.84,0.03]
[1756995694965,73.34329746,205.85,205.84,0.03]
[1756995695363,86.93889147,205.85,205.84,0.03]
[1756995695873,91.79679771,205.85,205.84,0.03]
[1756995696389,73.03790624,205.85,205.84,0.03]
[1756995696570,72.64329746,205.85,205.84,0.03]
[1756995697488,71.03983825,205.85,205.84,0.03]
[1756995698880,28.85983825,205.85,205.84,0.03]
[1756995699085,4.85722083,205.88,205.84,0.03]
[1756995699281,2.85983825,205.85,205.84,0.03]
[1756995699864,0.06,205.88,205.84,0.74]
[1756995700272,0.06,205.88,205.87,2.85983825]
[1756995700486,0.06,205.88,205.87,3.56983825]
[1756995701274,0.06,205.88,205.87,8.42727255]
[1756995701685,0.06,205.88,205.87,8.71159569]
[1756995702070,0.06,205.88,205.87,5.85175744]
[1756995702270,0.06,205.88,205.87,8.71159569]
[1756995703467,1e-08,205.88,205.87,8.71159569]
[1756995703672,1e-08,205.9,205.89,39.87991715]
[1756995703873,1e-08,205.9,205.89,54.1791084]
[1756995704090,1e-08,205.9,205.89,29.80416139]
[1756995705474,1e-08,205.9,205.89,34.66112384]
[1756995706377,1e-08,205.9,205.89,26.94432314]
[1756995706699,1e-08,205.9,205.89,8.66112384]
[1756995706885,1e-08,205.91,205.89,33.69607085]
[1756995707198,1e-08,205.91,205.9,26.66]
[1756995707400,1e-08,205.91,205.9,45.95807938]
[1756995707584,0.06,205.93,205.9,45.95807938]
[1756995707585,0.06,205.93,205.92,29.14416139]
[1756995707997,0.06,205.93,205.92,3.80416139]
[1756995708179,1e-08,205.93,205.92,45.84416139]
[1756995708380,1e-08,205.93,205.92,47.78954475]
[1756995708601,1e-08,205.93,205.92,61.38513876]
[1756995709479,1e-08,205.93,205.92,66.24139361]
[1756995710001,1e-08,205.93,205.92,66.22139361]
[1756995712885,0.06,205.98,205.95,26.0]
[1756995713386,0.06,205.98,205.95,71.78416139]
[1756995714112,0.73,205.98,205.95,7.71538571]
[1756995714486,0.73,205.98,205.95,4.85554746]
[1756995714806,3.58983825,205.96,205.91,2.85983825]
[1756995715009,0.67,205.95,205.91,2.85983825]
[1756995715316,0.67,205.94,205.91,2.85983825]
[1756995715702,3.52983825,205.93,205.89,4.85696245]
[1756995715904,0.67,205.92,205.88,2.85983825]
[1756995716205,3.52983825,205.91,205.86,4.85767026]
[1756995716408,0.67,205.9,205.86,7.71750851]
[1756995716596,0.67,205.9,205.86,4.85767026]
[1756995716986,0.67,205.9,205.86,7.71750851]
[1756995717614,0.67,205.9,205.85,12.00077681]
[1756995717914,7.81287057,205.9,205.85,4.85790624]
[1756995718126,7.81287057,205.89,205.85,4.85790624]
[1756995718412,7.81287057,205.91,205.89,0.03]
[1756995718611,0.67,205.91,205.89,0.03]
[1756995719009,0.67,205.9,205.89,0.03]
[1756995719309,7.81287057,205.91,205.89,0.03]
[1756995719516,0.67,205.91,205.89,0.03]
[1756995719897,0.06,205.93,205.89,7.83287057]
[1756995720215,0.06,205.93,205.9,7.14287057]
[1756995720514,0.06,205.93,205.92,7.14287057]
[1756995720912,0.06,205.93,205.92,7.80287057]
[1756995721110,1e-08,205.93,205.92,70.72565829]
[1756995721305,1e-08,205.93,205.92,63.58278772]
[1756995721702,1e-08,205.93,205.92,5.80057799]
[1756995721903,1e-08,205.93,205.92,54.84344856]
[1756995722105,1e-08,205.93,205.92,47.70057799]
[1756995722403,1e-08,205.93,205.92,54.84344856]
[1756995723197,1e-08,205.93,205.92,68.43904257]
[1756995723600,1e-08,205.93,205.92,54.80344856]
[1756995724714,1e-08,205.93,205.92,68.39904257]
[1756995724897,1e-08,205.93,205.92,75.54191314]
[1756995725097,1e-08,205.93,205.92,77.48720189]
[1756995725794,0.06,205.98,205.95,26.0]
[1756995725996,0.06,205.98,205.97,7.14287057]
[1756995726219,1e-08,205.98,205.97,7.14287057]
[1756995726402,1e-08,205.98,205.97,7.80287057]
[1756995726810,1e-08,205.98,205.97,9.74787556]
[1756995727007,1e-08,205.99,205.98,26.28432314]
[1756995727216,1e-08,205.99,205.98,26.94432314]
[1756995727401,1e-08,206.01,205.99,13.87991715]
[1756995727604,1e-08,206.01,206.0,49.24719371]
[1756995727796,1e-08,206.01,206.0,54.76156264]
[1756995727997,1e-08,206.01,206.0,61.90443321]
[1756995730811,1e-08,206.01,206.0,54.76156264]
[1756995731012,1e-08,206.01,206.0,53.7772395]
[1756995731621,1e-08,206.01,206.0,46.63436893]
[1756995731821,1e-08,206.01,206.0,54.04156264]
[1756995733324,1e-08,206.01,206.0,54.72156264]
[1756995733903,1e-08,206.01,206.0,54.04156264]
[1756995734407,1e-08,206.01,206.0,54.02156264]
[1756995734606,1e-08,206.01,206.0,5.13869207]
[1756995734812,1e-08,206.01,206.0,54.00156264]
[1756995737543,0.67000001,206.01,205.98,1.94481585]
[1756995737834,0.67,206.0,205.95,7.14287057]
[1756995738015,7.14287057,205.98,205.93,11.9988896]
[1756995738331,0.67,205.97,205.94,41.7]
[1756995738530,0.67,205.96,205.94,41.7]
[1756995739118,7.14287057,205.99,205.94,41.7]
[1756995739317,0.67,205.98,205.95,4.85554746]
[1756995739517,0.67,205.97,205.95,4.85554746]
[1756995739933,7.14287057,205.99,205.95,4.85554746]
[1756995740130,0.67,205.97,205.95,4.85554746]
[1756995740329,7.14287057,205.96,205.92,0.03]
[1756995740527,0.67,205.97,205.92,0.03]
[1756995740528,7.14287057,205.94,205.92,0.03]
[1756995740941,0.67,205.93,205.92,0.03]
[1756995741240,7.81287057,205.93,205.92,0.03]
[1756995742038,0.67,205.93,205.92,0.03]
[1756995744115,0.67,205.96,205.92,0.03]
[1756995744641,0.67,205.96,205.92,7.17287057]
[1756995744834,0.67,205.96,205.92,0.03]
[1756995745148,0.67,205.98,205.93,7.14287057]
[1756995745445,7.81287057,205.97,205.92,0.03]
[1756995745656,7.14287057,205.95,205.92,0.03]
[1756995745826,0.67,205.97,205.92,0.03]
[1756995746032,0.67,205.94,205.92,4.88624747]
[1756995747039,7.81287057,205.96,205.92,4.88624747]
[1756995747239,7.81287057,205.98,205.93,7.14287057]
[1756995747428,0.67000001,206.01,205.97,2.85402088]
[1756995747620,0.67000001,206.01,205.98,4.85484027]
[1756995748334,1e-08,206.01,205.98,7.70886115]
[1756995748834,1e-08,206.01,205.98,8.38886115]
[1756995749038,1e-08,206.01,205.94,4.85559804]
[1756995749338,1e-08,206.01,205.98,2.85402088]
[1756995749560,1e-08,206.01,205.98,7.13411168]
[1756995749767,1e-08,206.01,205.99,4.85460459]
[1756995750441,1e-08,206.01,205.97,7.13411168]
[1756995750640,1e-08,206.01,205.96,4.85531171]
[1756995750847,1e-08,206.01,205.99,7.13411168]
[1756995751245,1e-08,206.01,205.99,7.81411168]
[1756995751448,1e-08,206.01,206.0,7.81411168]
[1756995751661,1e-08,206.01,206.0,7.13411168]
[1756995751849,1e-08,206.01,206.0,11.98848061]
[1756995752259,1e-08,206.01,206.0,12.66848061]
[1756995752756,1e-08,206.01,205.99,4.85450558]
[1756995753167,0.67000001,206.01,205.98,4.85480862]
[1756995753644,1e-08,206.01,205.98,4.85480862]
[1756995753850,1e-08,206.01,205.97,11.98916556]
[1756995754163,7.80411169,206.01,205.97,4.85505388]
[1756995754344,0.67,206.0,205.95,38.66945665]
[1756995754538,7.13411168,205.99,205.94,6.80103603]
[1756995754754,7.13411168,205.97,205.94,1.94528876]
[1756995754945,7.13411168,205.95,205.92,0.03]
[1756995755360,0.67,205.97,205.92,0.03]
[1756995755548,7.80411168,205.96,205.92,0.03]
[1756995755867,7.80411168,205.96,205.94,0.03]
[1756995756345,7.13411168,205.98,205.94,0.03]
[1756995756662,7.80411168,205.98,205.94,0.03]
[1756995757457,0.67,205.98,205.94,0.03]
[1756995757650,7.13411168,205.99,205.94,0.03]
[1756995757862,7.80411168,205.99,205.94,0.03]
[1756995758054,7.80411168,205.99,205.94,4.88578323]
[1756995758241,7.13411168,206.0,205.94,4.88578323]
[1756995758442,7.13411168,206.0,205.95,7.81411168]
[1756995759451,11.43854094,206.0,205.96,4.85531171]
[1756995759653,10.76854094,206.0,205.96,4.85531171]
[1756995759848,11.43854094,206.0,205.96,4.85531171]
[1756995760061,0.67,205.99,205.94,10.79854094]
[1756995760363,10.76854094,206.0,205.95,11.44854094]
[1756995760678,1e-08,206.01,205.97,10.76854094]
[1756995761563,11.43854095,206.01,205.96,4.85531171]
[1756995761763,10.76854095,206.01,205.96,4.85531171]
[1756995761942,11.43854095,206.01,205.96,4.85531171]
[1756995762266,0.67000001,206.01,205.96,16.30385265]
[1756995762477,0.67000001,206.01,205.96,15.62385265]
[1756995762779,0.67000001,206.01,205.97,10.76854094]
[1756995762964,0.67000001,206.01,205.96,16.28385265]
[1756995762965,11.43854095,206.01,205.96,16.28385265]
[1756995763875,1e-08,206.01,205.98,10.76854094]
[1756995764164,1e-08,206.01,205.99,0.66]
[1756995764757,1e-08,206.01,205.98,10.76854094]
[1756995764971,1e-08,206.01,205.98,11.42854094]
[1756995765179,0.67000001,206.01,205.94,0.69]
[1756995765343,11.43854095,206.01,205.97,4.85507598]
[1756995765764,10.76854094,205.99,205.94,0.03]
[1756995765962,10.76854094,205.99,205.94,36.79854094]
[1756995766171,0.67,205.98,205.94,41.65432277]
[1756995766473,11.43854094,205.99,205.94,30.88578183]
[1756995766766,11.43854094,205.99,205.94,31.54578183]
[1756995767469,10.76854094,205.97,205.94,0.03]
[1756995767672,10.76854094,205.95,205.94,0.03]
[1756995767969,11.43854094,205.95,205.94,0.03]
[1756995769052,10.76854094,205.95,205.94,0.03]
[1756995769253,10.76854094,205.96,205.94,0.03]
[1756995769592,26.67,206.0,205.95,10.76854094]
[1756995769879,0.67,206.0,205.95,10.76854094]
[1756995770388,10.76854095,206.01,205.96,0.66]
[1756995770551,1e-08,206.01,205.97,11.42854094]
[1756995770751,1e-08,206.01,205.98,10.76854094]
[1756995770979,1e-08,206.01,205.94,26.03]
[1756995770980,0.67,206.0,205.94,26.03]
[1756995771162,10.76854094,205.99,205.94,0.03]
[1756995771360,4.8541461,206.01,205.94,0.03]
[1756995771361,11.43854094,205.98,205.94,0.03]
[1756995771557,5.13137445,205.98,205.94,4.88578323]
[1756995772579,1e-08,206.01,205.96,4.46137445]
[1756995773075,1e-08,206.01,205.98,4.46137445]
[1756995773453,1e-08,206.01,205.99,5.51460459]
[1756995773675,1e-08,206.01,205.99,9.97597904]
[1756995774172,1e-08,206.01,206.0,0.66]
[1756995774374,1e-08,206.01,206.0,5.12137445]
[1756995774963,1e-08,206.01,206.0,5.40569759]
[1756995775566,1e-08,206.01,206.0,10.26006652]
[1756995777259,1e-08,206.01,206.0,14.72144097]
[1756995778275,1e-08,206.01,206.0,16.66606773]
[1756995780163,1e-08,206.01,206.0,12.20469328]
[1756995780478,1e-08,206.01,206.0,16.66606773]
[1756995781060,0.06,206.04,206.0,16.66606773]
[1756995781061,1e-08,206.04,206.03,26.0]
[1756995781257,1e-08,206.04,206.03,30.74569759]
[1756995781458,1e-08,206.04,206.03,31.40569759]
[1756995782281,1e-08,206.04,206.03,38.20370284]
[1756995782783,1e-08,206.04,206.03,79.44370284]
[1756995784080,1e-08,206.04,206.03,78.78370284]
[1756995784286,1e-08,206.04,206.03,33.74232839]
[1756995784481,1e-08,206.04,206.03,36.25935967]
[1756995784690,1e-08,206.04,206.03,38.20389189]
[1756995785074,1e-08,206.04,206.03,36.25935967]
[1756995785493,1e-08,206.04,206.03,38.20370285]
[1756995785887,0.67,206.12,206.08,4.46137445]
[1756995786193,0.67,206.12,206.11,4.85177817]
[1756995787268,0.67,206.12,206.07,30.46137445]
[1756995787468,0.67,206.12,206.08,4.46137445]
[1756995787669,0.67,206.11,206.07,30.46137445]
[1756995787875,0.67,206.13,206.09,4.46137445]
[1756995788196,0.67,206.13,206.11,4.85177817]
[1756995789087,0.67,206.12,206.11,4.85177817]
[1756995789296,0.67,206.12,206.04,4.46137445]
[1756995789496,0.67,206.11,206.04,4.85342651]
[1756995789673,4.46137445,206.09,206.04,9.31480096]
[1756995789872,0.67,206.08,206.04,9.31480096]
[1756995790880,0.67,206.11,206.07,4.46137445]
[1756995791085,0.2,206.14,206.09,4.46137445]
[1756995791288,0.87,206.14,206.08,0.66]
[1756995791491,0.87,206.14,206.1,4.46137445]
[1756995791664,0.67,206.13,206.1,4.46137445]
[1756995791979,0.67,206.13,206.08,0.66]
[1756995792179,0.67,206.13,206.1,4.46137445]
[1756995792375,0.2,206.14,206.11,4.46137445]
[1756995792581,0.2,206.14,206.13,4.85130742]
[1756995792773,0.2,206.14,206.13,9.31268187]
[1756995793291,0.2,206.14,206.13,9.97268187]
[1756995793504,0.2,206.14,206.13,4.85130742]
[1756995793687,0.88,206.14,206.13,4.85130742]
[1756995793997,0.88,206.14,206.11,4.46137445]
[1756995794202,0.2,206.14,206.11,4.46137445]
[1756995794498,0.88,206.14,206.11,4.46137445]
[1756995794702,0.2,206.14,206.11,9.31298444]
[1756995796886,0.68,206.13,206.1,4.85196152]
[1756995797195,0.2,206.14,206.11,4.46137445]
[1756995797496,0.2,206.14,206.13,10.74892496]
[1756995798077,0.2,206.14,206.13,0.66]
[1756995798392,0.2,206.14,206.13,11.40892496]
[1756995798774,0.2,206.14,206.13,5.51130742]
[1756995798979,0.2,206.14,206.13,16.26023238]
[1756995799576,0.06,206.17,206.13,28.67282408]
[1756995799791,0.06,206.17,206.16,10.74892496]
[1756995800277,0.06,206.17,206.16,11.40892496]
[1756995800886,0.06,206.17,206.16,5.51060147]
[1756995801095,0.06,206.17,206.16,16.25952643]
[1756995801694,0.06,206.17,206.16,16.54384957]
[1756995803788,0.06,206.17,206.16,4.85060147]
[1756995804006,0.06,206.17,206.14,15.59999704]
[1756995804308,0.74,206.17,206.14,15.59999704]
[1756995804605,0.06,206.17,206.12,0.66]
[1756995804903,0.06,206.17,206.14,10.74892496]
[1756995805200,0.06,206.17,206.16,10.74892496]
[1756995805727,0.06,206.17,206.16,11.40892496]
[1756995805893,0.06,206.17,206.16,11.6932481]
[1756995806802,0.06,206.17,206.16,16.54384957]
[1756995808305,0.06,206.17,206.16,4.85060147]
[1756995808594,0.06,206.17,206.16,15.59952643]
[1756995809007,0.06,206.17,206.16,16.25952643]
[1756995809385,0.06,206.17,206.16,11.40892496]
[1756995809586,0.06,206.17,206.15,4.85076126]
[1756995809782,0.68,206.16,206.11,4.85177817]
[1756995810010,0.06,206.17,206.14,10.74892496]
[1756995810212,0.74,206.17,206.12,0.94432314]
[1756995810417,0.68,206.16,206.13,10.74892496]
[1756995810996,0.68,206.16,206.14,4.85107208]
[1756995811482,0.06,206.17,206.14,4.85107208]
[1756995811690,0.06,206.17,206.16,10.74892496]
[1756995812192,0.06,206.17,206.14,5.51107208]
[1756995812379,0.06,206.17,206.15,10.74892496]
[1756995812708,0.68,206.16,206.13,4.85128537]
[1756995812912,11.42892496,206.15,206.08,12.79102346]
[1756995813113,0.68,206.15,206.11,4.85177817]
[1756995813291,0.68,206.14,206.11,4.85177817]
[1756995814009,0.68,206.13,206.11,4.85177817]
[1756995814312,11.42892496,206.16,206.11,15.60070313]
[1756995814489,0.68,206.15,206.11,4.85177817]
[1756995814688,0.68,206.14,206.11,4.85177817]
[1756995815205,0.74,206.17,206.13,10.74892496]
[1756995816095,1e-08,206.19,206.16,10.74892496]
[1756995816306,1e-08,206.19,206.18,11.0332481]
[1756995816522,1e-08,206.19,206.18,51.9332481]
[1756995816819,1e-08,206.19,206.18,52.5932481]
[1756995817028,1e-08,206.19,206.18,68.19230401]
[1756995817317,1e-08,206.19,206.18,94.19230401]
[1756995817818,1e-08,206.19,206.18,81.78789802]
[1756995818709,1e-08,206.22,206.21,26.0]
[1756995818912,1e-08,206.22,206.21,37.6932481]
[1756995819119,1e-08,206.22,206.21,42.54267344]
[1756995819308,1e-08,206.22,206.21,83.42267344]
[1756995819506,1e-08,206.22,206.21,77.12061496]
[1756995820515,1e-08,206.22,206.21,81.56748144]
[1756995820818,1e-08,206.22,206.21,40.68748144]
[1756995820992,1e-08,206.22,206.21,81.54748144]
[1756995821495,1e-08,206.22,206.21,79.9463918]
[1756995822128,0.68,206.35,206.22,13.87991715]
[1756995822306,0.68,206.35,206.33,2.84577684]
[1756995822494,0.68,206.37,206.29,0.98432314]
[1756995823031,0.68,206.37,206.3,0.7]
[1756995823233,13.59559401,206.42,206.31,0.28432314]
[1756995823529,0.68,206.39,206.33,2.84577684]
[1756995823692,0.68,206.38,206.33,2.84577684]
[1756995823896,0.68,206.37,206.31,0.28432314]
[1756995824230,0.68,206.37,206.33,2.84577684]
[1756995824394,0.68,206.42,206.36,2.84577684]
[1756995824608,0.68,206.42,206.39,2.84577684]
[1756995824807,0.68,206.41,206.39,2.84577684]
[1756995825039,0.68,206.41,206.34,0.98432314]
[1756995825342,0.68,206.47,206.41,0.28432314]
[1756995825797,0.68,206.47,206.44,7.10168245]
[1756995826001,0.68,206.47,206.43,7.10168245]
[1756995826202,0.68,206.46,206.41,0.28432314]
[1756995826439,26.0,206.5,206.39,0.7]
[1756995826440,0.68,206.45,206.42,7.10168245]
[1756995826629,7.10168245,206.48,206.42,7.10168245]
[1756995826815,0.68,206.44,206.42,7.10168245]
[1756995827130,0.68,206.49,206.42,4.84449181]
[1756995827305,7.78168245,206.48,206.41,0.28432314]
[1756995827505,7.10168245,206.47,206.41,11.94638559]
[1756995827705,0.68,206.46,206.4,14.55851309]
[1756995827921,0.68,206.45,206.4,14.55851309]
[1756995828106,0.68,206.44,206.38,0.28432314]
[1756995828310,7.10168245,206.43,206.37,40.56063291]
[1756995828605,7.10168245,206.43,206.37,14.56063291]
[1756995828816,0.68,206.42,206.37,21.66231536]
[1756995829108,0.68,206.41,206.38,7.10168245]
[1756995829317,0.68,206.41,206.37,14.56063291]
[1756995829318,0.68,206.4,206.37,26.50790233]
[1756995829537,0.68,206.4,206.37,0.28432314]
[1756995830007,0.68,206.43,206.38,7.10168245]
[1756995830206,0.68,206.43,206.37,0.98432314]
[1756995830207,0.68,206.42,206.39,7.10168245]
[1756995830430,7.10168245,206.44,206.37,0.98432314]
[1756995830634,0.68,206.44,206.4,7.10168245]
[1756995831328,0.68,206.44,206.4,11.94644925]
[1756995831529,0.68,206.43,206.4,11.94644925]
[1756995831831,0.68,206.42,206.38,4.84526426]
[1756995832004,7.10168245,206.45,206.39,0.7]
[1756995832324,0.68,206.46,206.44,7.10168245]
[1756995832507,0.68,206.48,206.43,7.10168245]
[1756995832705,0.68,206.48,206.43,7.80168245]
[1756995832915,0.68,206.47,206.43,7.10168245]
[1756995833234,0.68,206.49,206.44,7.10168245]
[1756995833402,7.10168245,206.5,206.45,7.10168245]
[1756995833609,7.78168245,206.5,206.45,7.10168245]
[1756995833830,7.78168245,206.5,206.44,0.7]
[1756995833831,0.68,206.5,206.44,0.7]
[1756995834010,7.10168245,206.5,206.45,7.10168245]
[1756995834207,7.78168245,206.49,206.44,7.10168245]
[1756995834532,0.68,206.49,206.44,7.10168245]
[1756995835013,7.10168245,206.5,206.44,7.10168245]
[1756995835204,0.68,206.48,206.44,7.10168245]
[1756995835410,0.68,206.48,206.45,4.84378784]
[1756995835710,0.68,206.5,206.45,4.84378784]
[1756995835925,38.09357833,206.52,206.44,7.10168245]
[1756995835926,7.10168245,206.47,206.44,4.84402245]
[1756995836106,0.68,206.46,206.43,4.84422039]
[1756995836306,0.68,206.45,206.43,4.84422039]
[1756995836530,0.68,206.45,206.41,4.84456242]
[1756995836731,0.68,206.44,206.41,4.84456242]
[1756995837225,7.10168245,206.45,206.41,4.84456242]
[1756995837436,7.78168245,206.44,206.4,4.84496124]
[1756995837812,4.84316296,206.48,206.4,4.84496124]
[1756995837813,0.68,206.46,206.4,4.84496124]
[1756995838126,0.68,206.45,206.4,4.84496124]
[1756995838312,0.68,206.44,206.4,4.84496124]
[1756995838631,0.68,206.43,206.4,4.84496124]
[1756995839033,0.68,206.45,206.4,4.84496124]
[1756995839221,7.78168245,206.44,206.4,4.84496124]
[1756995839421,13.59559401,206.5,206.39,30.84516824]
[1756995839608,13.59559401,206.45,206.41,7.10168245]
[1756995839813,14.27559401,206.45,206.41,7.10168245]
[1756995840018,0.68,206.49,206.44,7.10168245]
[1756995840309,12.09357833,206.52,206.48,7.10168245]
[1756995840512,12.09357833,206.52,206.49,7.80168245]
[1756995840922,12.09357833,206.52,206.5,7.10168245]
[1756995841229,12.09357833,206.52,206.47,0.7]
[1756995841540,12.09357833,206.52,206.49,7.10168245]
[1756995842042,12.09357833,206.52,206.48,7.10168245]
[1756995842208,12.09357833,206.52,206.47,0.98432314]
[1756995842209,12.09357833,206.52,206.47,7.80168245]
[1756995842411,12.09357833,206.52,206.47,12.64492472]
[1756995842610,12.09357833,206.52,206.48,7.10168245]
[1756995842810,12.09357833,206.52,206.47,5.54324227]
[1756995843031,12.09357833,206.52,206.48,7.10168245]
[1756995843427,12.09357833,206.52,206.49,4.84284953]
[1756995843628,12.09357833,206.52,206.49,12.64453198]
[1756995844537,12.09357833,206.52,206.5,0.7]
[1756995844712,12.09357833,206.52,206.49,4.84284953]
[1756995845407,12.09357833,206.52,206.49,11.94453198]
[1756995845612,12.09357833,206.52,206.51,7.10168245]
[1756995845915,12.09357833,206.52,206.5,7.80168245]
[1756995846121,12.09357833,206.52,206.5,7.10168245]
[1756995846516,12.09357833,206.52,206.5,7.80168245]
[1756995846716,12.09357833,206.52,206.5,7.10168245]
[1756995847129,12.09357833,206.52,206.48,0.7]